Cogmind - Beta 15 *** ADVENTURER MODE // 2025.08.02 @ 21:47:49 Player: BattleBruvva Result: Self-destructed Performance ------------- Evolutions (2) 1000 Regions Visited (4) 800 Robots Destroyed (11) 55 Value Destroyed (102) 102 Prototype IDs (3) 60 Alien Tech Used (0) 0 Bonus (0) 0 TOTAL SCORE: 2017 Bonus ------- None Cogmind --------- Core Integrity 488/550 Matter 181/300 Energy 240/240 System Corruption 0% Temperature Cool (9) Movement Flying (120) Ox1 Location -8/Storage Parts ------- > --- POWER (1) -------- Nuclear Core > --- PROPULSION (5) --- Xenon Bombardment Thruster > --- UTILITY (3) ------ Recoil Stabilizer > --- WEAPON (2) ------- Great Maul > --- INVENTORY (5) ---- Deuterium Engine Grenade Launcher Improved Grenade Launcher Heavy Hammer Peak State ------------ > --- POWER ------------ Nuclear Core > --- PROPULSION ------- Flight Unit Xenon Bombardment Thruster Xenon Bombardment Thruster Xenon Bombardment Thruster Xenon Bombardment Thruster > --- UTILITY ---------- Seismic Detector > --- WEAPON ----------- Great Maul > --- INVENTORY -------- Deuterium Engine Flight Unit Grenade Launcher Improved Grenade Launcher Heavy Hammer [Rating: 25] Favorites ----------- Power Nuclear Core Engine Light Ion Engine Power Core Nuclear Core Propulsion Flight Unit Leg Aluminum Leg Flight Unit Flight Unit Utility Seismic Detector Device Seismic Detector Weapon Great Maul Launcher Grenade Launcher Impact Weapon Great Maul Build | -11 -10 -9 -8 -8 ------- Run | Yrd Mat Mat Mat Sto Slots Evolved 4 | . . 2 2 . Power . | . . . . . Propulsion 3 | . . 2 1 . Utility 1 | . . . 1 . Weapon . | . . . . . Parts Attached 20 | 2 4 4 9 1 Power 3 | . . . 3 . Engine 2 | . . . 2 . Core 1 | . . . 1 . Reactor . | . . . . . Propulsion 12 | 2 3 2 5 . Treads . | . . . . . Leg 2 | 2 . . . . Wheel . | . . . . . Hover . | . . . . . Flight 10 | . 3 2 5 . Utility 2 | . . 1 . 1 Device 2 | . . 1 . 1 Storage . | . . . . . Processor . | . . . . . Hackware . | . . . . . Protection . | . . . . . Artifact . | . . . . . Weapon 3 | . 1 1 1 . Energy Gun . | . . . . . Energy Cannon . | . . . . . Ballistic Gun . | . . . . . Ballistic Cannon . | . . . . . Launcher 1 | . 1 . . . Special Weapon . | . . . . . Impact Weapon 2 | . . 1 1 . Slashing Weapon . | . . . . . Piercing Weapon . | . . . . . Special Melee Weapon . | . . . . . Unidentified Prototypes 1 | . . . 1 . Parts Lost 11 | . 1 1 4 5 Power . | . . . . . Propulsion 9 | . 1 1 3 4 Utility 1 | . . . . 1 Weapon 1 | . . . 1 . Highest Loss Streak 5 | . 1 1 2 5 To Critical Strikes . | . . . . . Average Backups 2 | . 1 . 2 4 Power . | . . . . 1 Propulsion . | . . . . . Utility . | . . . . . Weapon 1 | . . . 1 3 Tool/Special . | . . . . . Unused Backups 1 | . . . . 1 Power . | . . . . . Propulsion . | . . . . . Utility . | . . . . . Weapon 1 | . . . . 1 Tool/Special . | . . . . . Average Slot Usage (%) 53 | . 31 58 57 61 Core 2 | . . . 3 9 Leg 3 | . 17 . . . Flight 29 | . 8 38 32 30 Device 8 | . . 9 9 13 Launcher 3 | . 5 6 1 . Impact Weapon 6 | . . 4 9 9 Peak Build Rating 25 | 2 3 7 25 24 Average Rating 10 | 1 2 5 13 20 On Entrance 6 | . 2 3 6 21 Naked Turns . | . . . . . Heaviest Build 14 | . 3 4 14 13 Greatest Support 28 | 10 8 8 28 22 Greatest Overweight (x) 1 | . . . . 1 Average Overweight (x) . | . . . . . Largest Inventory Capacity 5 | 5 5 5 5 5 Average Capacity 5 | 5 5 5 5 5 Most Carried 5 | . 5 2 5 5 Average Carried 2 | . 1 . 3 4 Final Capacity 5 | 5 5 5 5 5 Final Carried 5 | . 3 1 5 4 Class Distribution -------------------- 58% | Mutant 41% | Sprinter Dominant Class ---------------- Mutant | -10/Materials Mutant | -9/Materials Sprinter | -8/Materials Sprinter | -8/Storage Resources | -11 -10 -9 -8 -8 ----------- Run | Yrd Mat Mat Mat Sto Matter Collected 321 | 220 25 65 11 . Remotely . | . . . . . Salvage Created 96 | . 57 28 11 . Parts 13 | . 8 2 3 . Haulers Intercepted . | . . . . . Recyclers Shooed . | . . . . . Parts Field Recycled . | . . . . . Retrieved Matter . | . . . . . Parts Self-Destructed . | . . . . . Prevented . | . . . . . Kills | -11 -10 -9 -8 -8 ------- Run | Yrd Mat Mat Mat Sto Combat Hostiles Destroyed 9 | . 6 . 3 . AOE 9 | . 6 . 3 . Classes Destroyed 2 | . 2 . . . Worker 2 | . 1 1 . . Swarmer 9 | . 6 . 3 . Best Kill Streak 4 | . 4 1 3 . Combat Bots Only 3 | . 3 . 3 . Max Kills in Single Turn 4 | . 4 1 3 . Gunslinging . | . . . . . Exploded 3 | . 3 . 3 . Melee . | . . . . . Uniques/NPCs Destroyed . | . . . . . Combat | -11 -10 -9 -8 -8 -------- Run | Yrd Mat Mat Mat Sto Hostile Shots Fired 92 | . 23 10 33 26 Missed 44 | . 13 2 22 7 Hits 48 | . 10 8 11 19 Projectile 48 | . 10 8 11 19 Damage Taken 538 | . 82 82 145 229 Core 122 | . 43 17 12 50 Absorbed by Shields . | . . . . . Ignored by Resistances 158 | . 26 24 42 66 Core Remaining (%) 92 | 100 82 95 . . Volleys Fired 4 | . 2 . 2 . Largest 1 | . 1 . 1 . Hottest 30 | . 30 . 30 . Shots Fired 4 | . 2 . 2 . Gun . | . . . . . Cannon . | . . . . . Launcher 4 | . 2 . 2 . Special . | . . . . . Kinetic . | . . . . . Thermal . | . . . . . Explosive 4 | . 2 . 2 . Electromagnetic . | . . . . . Robot Hit Streak 1 | . 1 . 1 . Robot Miss Streak 2 | . 1 . 2 . Penetration Max . | . . . . . Secondary Targets . | . . . . . Shots Hit Robots 3 | . 1 1 1 . Core Hits 11 | . 7 . 4 . Critical Kills . | . . . . . Critical Parts Destroyed . | . . . . . Critical Strikes . | . . . . . Melee Attacks 3 | . . 3 . . Impact 3 | . . 3 . . Slashing . | . . . . . Piercing . | . . . . . Sneak Attacks 1 | . . 1 . . Combat Hostiles . | . . . . . Follow-up Attacks . | . . . . . Damage Inflicted 493 | . 303 50 140 . Guns . | . . . . . Cannons . | . . . . . Explosions 443 | . 303 . 140 . Melee 50 | . . 50 . . Ramming . | . . . . . Kinetic . | . . . . . Thermal . | . . . . . Explosive 443 | . 303 . 140 . Electromagnetic . | . . . . . Impact 50 | . . 50 . . Slashing . | . . . . . Piercing . | . . . . . Highest Corruption . | . . . . . Average Corruption . | . . . . . Corruption Purged . | . . . . . Corruption Blocked . | . . . . . Overload Shots . | . . . . . Overflow Damage 10 | . . 10 . . Projectiles . | . . . . . Explosions . | . . . . . Melee 10 | . . 10 . . Knockbacks . | . . . . . Impact . | . . . . . Kinetic . | . . . . . Secondary . | . . . . . Self-Inflicted Damage . | . . . . . Shots . | . . . . . Rammed . | . . . . . Targets Rammed . | . . . . . Kicked . | . . . . . Crushed . | . . . . . Highest Temperature 45 | . 1 . 45 9 Average Temperature 18 | . 1 . 20 6 Received Heat Transfer 273 | . 36 39 63 135 Siege Activations . | . . . . . Martial Activations . | . . . . . Shielding Activations . | . . . . . Robots Disrupted . | . . . . . Combat Hostiles . | . . . . . Robots Corrupted . | . . . . . Combat Hostiles . | . . . . . Parts Fried 1 | . . 1 . . Impact Corruptions 1 | . . 1 . . Robots Melted . | . . . . . Combat Hostiles . | . . . . . Parts Melted . | . . . . . Heat Transferred . | . . . . . Parts Sabotaged . | . . . . . Parts Stolen . | . . . . . Parts Stripped . | . . . . . Power Chain Reactions . | . . . . . Alert | -11 -10 -9 -8 -8 ------- Run | Yrd Mat Mat Mat Sto Maximum Alert Level . | . . . . . Low Security (%) 100 | 100 100 100 100 100 Level 1 . | . . . . . Level 2 . | . . . . . Level 3 . | . . . . . Level 4 . | . . . . . Level 5 . | . . . . . High Security . | . . . . . Max Security . | . . . . . Peak Influence 141 | . 141 59 78 66 Initial 50 | . . 50 12 19 Average 38 | . 45 42 40 29 Influence Increases 440 | . 161 44 143 92 Destroy 0b10 Robot/C 180 | . 120 . 60 . Destroy 0b10 Robot/NC 10 | . 5 5 . . Destroy Leader 30 | . 20 . 10 . Successful Hack 29 | . . 7 20 2 Disable Machine 9 | . 9 . . . Destroy Structure 17 | . 7 2 8 . Partial Spotted 75 | . . 15 15 45 Lose Combat Pursuer 90 | . . 15 30 45 Influence Decreases 409 | . 20 151 121 117 Entered New Map 150 | . . 91 22 37 Time Decay 150 | . 10 50 60 30 Lost Part 109 | . 10 10 39 50 Squads Dispatched 5 | . . 1 2 2 Investigation 4 | . . 1 2 1 Extermination . | . . . . . Reinforcement 1 | . . . . 1 Assault . | . . . . . Garrison . | . . . . . Intercept . | . . . . . Searches Triggered . | . . . . . Construction Impeded . | . . . . . Haulers Reinforced . | . . . . . Active Scanning Responses . | . . . . . Cargo Convoy Interrupts . | . . . . . Stealth | -11 -10 -9 -8 -8 --------- Run | Yrd Mat Mat Mat Sto Distress Signals 3 | . 1 1 . 1 Communications Jammed . | . . . . . Distress Signals . | . . . . . Times Spotted 42 | . 12 4 11 15 Peak Tracking Total 13 | . 8 3 6 13 Tactical Retreats 4 | . . 1 1 2 Traps | -11 -10 -9 -8 -8 ------- Run | Yrd Mat Mat Mat Sto Traps Triggered 1 | . . . 1 . Indirectly . | . . . . . Trap Hack Attempts . | . . . . . Triggered . | . . . . . Disarmed . | . . . . . Reprogrammed . | . . . . . Reused . | . . . . . Traps Extracted . | . . . . . Installed . | . . . . . Triggered . | . . . . . Machines | -11 -10 -9 -8 -8 ---------- Run | Yrd Mat Mat Mat Sto Machines Disabled 1 | . 1 . . . Max in Single Turn 1 | . 1 . . . Machines Repaired . | . . . . . Machines Dismantled . | . . . . . Machines Sabotaged . | . . . . . Overloaded Fab Kills . | . . . . . Hacking | -11 -10 -9 -8 -8 --------- Run | Yrd Mat Mat Mat Sto Machines Accessed 11 | . . 4 5 2 Terminals 10 | . . 4 4 2 Fabricators . | . . . . . Repair Stations . | . . . . . Recycling Units 1 | . . . 1 . Scanalyzers . | . . . . . Garrison Access . | . . . . . Total Hacks 36 | . . 13 18 5 Successful 20 | . . 9 8 3 Failed 16 | . . 4 10 2 Catastrophic 3 | . . . 3 . Database Lockouts . | . . . . . Manual 26 | . . 9 13 4 Terminals 34 | . . 13 16 5 Fabricators . | . . . . . Repair Stations . | . . . . . Recycling Units 2 | . . . 2 . Scanalyzers . | . . . . . Garrison Access . | . . . . . Terminal Hacks 9 | . . 5 2 2 Record 2 | . . . 1 1 Robot Analysis 1 | . . . 1 . Prototype ID Bank 1 | . . 1 . . Open Door 1 | . . . . 1 Level Access Points 1 | . . 1 . . Alert Level 1 | . . 1 . . Locate Traps 2 | . . 2 . . Fabricator Hacks . | . . . . . Repair Station Hacks . | . . . . . Recycling Unit Hacks 1 | . . . 1 . Report Inventory 1 | . . . 1 . Scanalyzer . | . . . . . Garrison Access Hacks . | . . . . . Unauthorized Hacks 10 | . . 4 5 1 Terminals 10 | . . 4 5 1 Assimilate 1 | . . . 1 . Botnet 9 | . . 4 4 1 Fabricators . | . . . . . Repair Stations . | . . . . . Recycling Units . | . . . . . Scanalyzers . | . . . . . Garrison Access . | . . . . . Data Cores Recovered . | . . . . . Used . | . . . . . Hacking Detections 10 | . . 4 5 1 Full Trace Events 4 | . . 1 2 1 Feedback Events . | . . . . . Feedback Blocked . | . . . . . Robot Schematics Acquired . | . . . . . Robots Built . | . . . . . Authchips . | . . . . . Time . | . . . . . Total Robot Build Rating . | . . . . . Part Schematics Acquired . | . . . . . Parts Built . | . . . . . Authchips . | . . . . . Time . | . . . . . Total Part Build Rating . | . . . . . Parts Repaired . | . . . . . Time . | . . . . . Parts Recycled . | . . . . . Recycled Matter . | . . . . . Retrieved Matter . | . . . . . Retrieved Components . | . . . . . Parts Scanalyzed . | . . . . . Part Schematics Acquired . | . . . . . Parts Damaged . | . . . . . Bothacking | -11 -10 -9 -8 -8 ------------ Run | Yrd Mat Mat Mat Sto Used RIF Installer . | . . . . . Robots Hacked . | . . . . . Non-combat . | . . . . . Combat . | . . . . . Robot Hacks Applied . | . . . . . Relay Couplers Released . | . . . . . Fabnet Peak Effective % . | . . . . . Robots Rewired . | . . . . . Allies Hacked . | . . . . . Hacks Repelled . | . . . . . Allies | -11 -10 -9 -8 -8 -------- Run | Yrd Mat Mat Mat Sto Total Allies . | . . . . . Largest Group . | . . . . . Highest-Rated Group . | . . . . . Highest-Rated Ally . | . . . . . Total Orders . | . . . . . Ally Attacks . | . . . . . Total Damage . | . . . . . Kills . | . . . . . Allies Corrupted . | . . . . . Allies Melted . | . . . . . Intel | -11 -10 -9 -8 -8 ------- Run | Yrd Mat Mat Mat Sto Active Infowar (turns) 41 | . . . . 41 Seismic 41 | . . . . 41 Robot Analysis Total 1 | . . . 1 . Derelict Logs Recovered . | . . . . . Drone Launches . | . . . . . Drone Recoveries . | . . . . . Exploration | -11 -10 -9 -8 -8 ------------- Run | Yrd Mat Mat Mat Sto Turns Passed 402 | 20 76 107 130 69 Spaces Moved 905 | 32 134 251 310 178 Core 111 | 30 81 . . . Treads . | . . . . . Legs 2 | 2 . . . . Wheels . | . . . . . Hover . | . . . . . Flight 792 | . 53 251 310 178 Fastest Speed 28 | 50 37 37 28 31 Average Speed 37 | 54 44 37 32 37 Slowest Speed 120 | 120 50 40 37 120 Overloaded Moves . | . . . . . Propulsion Burnouts . | . . . . . Robots Hopped 6 | . 2 2 2 . Potential Cave-ins . | . . . . . Cave-ins Triggered . | . . . . . Exploration Rate (%) 30 | 4 41 31 44 33 Regions Visited 4 Branch Regions 1 Pre-discovered Areas . | . . . . . Known Exits Taken 1 | . . 1 . . Unknown Exits Taken 3 | 1 1 . 1 . Scrap Searched . | . . . . . Spaces Dug 2 | . . 2 . . Terrain Destroyed 16 | . 6 2 8 . Melee 2 | . . 2 . . Projectile . | . . . . . AOE 14 | . 6 . 8 . Terrain Rammed . | . . . . . Walls Destroyed . | . . . . . Machines Disabled . | . . . . . Actions | -11 -10 -9 -8 -8 --------- Run | Yrd Mat Mat Mat Sto Total 944 | 33 145 256 330 180 Wait 3 | . . . 3 . Move 889 | 31 129 246 305 178 Hop 6 | . 2 2 2 . Pick Up 7 | . 4 . 3 . Fast Attach 12 | 2 3 1 5 1 Attach 7 | . 1 3 2 1 Detach 4 | . 2 1 1 . Swap 6 | . . . 6 . Drop 3 | . 2 . 1 . Fire 4 | . 2 . 2 . Melee 3 | . . 3 . . Ram . | . . . . . Kick . | . . . . . Crush . | . . . . . Escape Stasis . | . . . . . Rewire . | . . . . . Trap . | . . . . . Miscellaneous . | . . . . . Route ------- -11/Scrapyard -10/Materials -9/Materials (discovered 3 exits: *Mat x3) -8/Materials -8/Storage History --------- Turn | Location | Event 3 | -11/Scrapyard | Discovered new exit (range 16) 21 | -11/Scrapyard | Entered Materials 94 | -10/Materials | Discovered new exit (range 8) 97 | -10/Materials | Entered another Materials area 97 | -9/Materials | Evolved 2 slots: Propulsion x2 110 | -9/Materials | Identified exit to Materials 204 | -9/Materials | Entered another Materials area 204 | -8/Materials | Evolved 2 slots: Propulsion x1, Utility x1 324 | -8/Materials | Discovered new exit (range 9) 334 | -8/Materials | Entered Storage 403 | -8/Storage | Self-destructed Last Messages --------------- Awaiting botnet instructions. 00337_ ALERT: Suspicious activity at Terminal S013. Dispatching Investigation squad. 00351_ Connecting with Door Terminal... >>Open(Door) Sealed Heavy Doors opened. 00352_ Acquired Recoil Stabilizer. 00361_ O-16 Technician: "IFF HANDSHAKE FAILED. SECURING TERMINAL." 00369_ Connecting with Door Terminal... 00371_ ALERT: Hostiles spotted, dispatching reinforcements to Terminal S010. 00374_ K-01 Serf cleans the Component Storage. 00376_ Xenon Bombardment Thruster destroyed. 00385_ K-01 Serf destroyed. 00387_ Flight Unit destroyed. 00394_ Seismic Detector destroyed. 00394_ Xenon Bombardment Thruster destroyed. 00401_ W-25 Informer distress signal alerts nearby ally. Map ----- +----------------------------------------------------+ | ???#"""T"""##### + !!#????????????????? | | ??????#####????# ## % !!#????????????????? | | ???????????????# ## #????????????????? | | ???????????????# ## #????????????????? | | ???????????????# ## #######??????????? | | ???????????????# ## #???????? | | ???????????????# + #### ######???????????? | | ????????????????#######+##??# =%#????????????????? | | ????????????????????? ??# =#????????????????? | | ??????????????????? ## #????????????????? | | ?????????????????# ## #????????????????? | | ?????????????????# """ """ ## #????????????????? | | ?????????????????# """ """ # #????????????????? | | ?????????????????# """ """ ## #????????????????? | | ?????????????????# ## #????????????????? | | ?????????????????#?? ## ##???????????????? | | ????????????????????#"T"#??# #???????????????? | | ????????????????????###?#### #???????????????? | | ????????????????????????# #???????????????? | | ????????????????????????# ## #???????????????? | | ????????????????????????# ## #???????????????? | | ????????????????????????# ####/#####?????????????? | | ????????????????????????# # #?????????????? | | ?????????????????????#### # #?????????????? | | ?????????????????????# + """" #?????????????? | | ?????????????????????# a @# "??? #?????????????? | | ?????????????????????#g # "???? #?????????????? | | ??????????????????? gga # "?????#?????????????? | | ??????????????????#######a# "???????????????????? | | ????????????????????????# # "???????????????????? | | ????????????????????????# # ???????????????????? | | ????????????????????????# ####???????????????????? | | ????????????????????????# #??????????????????????? | | ????????????????????????# #??????????????????????? | | ?????????????????????????w???????????????????????? | | ?????????????????????????w???????????????????????? | | ????????????????????????? ???????????????????????? | | ?????????????????????????#???????????????????????? | | ?????????????????????????????????????????????????? | | ?????????????????????????????????????????????????? | | ?????????????????????????????????????????????????? | | ?????????????????????????????????????????????????? | | ?????????????????????????????????????????????????? | | ?????????????????????????????????????????????????? | | ?????????????????????????????????????????????????? | | ?????????????????????????????????????????????????? | | ?????????????????????????????????????????????????? | | ?????????????????????????????????????????????????? | | ?????????????????????????????????????????????????? | | ?????????????????????????????????????????????????? | +----------------------------------------------------+ Best States ------------- Heat Dissipation 31 Energy Generation 14 Energy Capacity 240 Matter Stores 300 Matter Capacity 300 Sight Range 16 Terrain Scan Density 10 Resistance: KI 20 Resistance: TH 20 Resistance: EX 20 Resistance: EM 20 Resistance: I 20 Resistance: S 20 Resistance: P 20 Evasion (%) 64 Offensive Hacking 10 Item Schematics ----------------- None Robot Schematics ------------------ None Fabricated ------------ Nothing Repaired ---------- Nothing Alien Tech Used ----------------- None Achievements -------------- None Challenges ------------ None Game ------ Seed SmallMappingSword Manual? 0 Play Time 00:14:25 Cumulative 41.9 hours Start 2025.08.02 @ 21:35:22 End 2025.08.02 @ 21:47:49 Sessions 1 Manual Loads 0 Difficulty Adventurer Special Mode None Game No. 15 Rogue 4 Adventurer 11 Explorer 0 Win Type - Total 2 Types 0/0/2/0/0/0/0/0/0/0 Lore% 39 Gallery% 36 Achievement% 38 Wizard Run 0 Options --------- Layout 1 ASCII 0 Keyboard 1 Movement Arrows Keybinds 0 Fullscreen 2 Font 24/Smallcaps Map View 50x35 Zoom Use 0% Tactical HUD 1 Map Filters NONE Filters NONE Steam 1 RUN: 30535b7e-9f3e-4f64-85bc-691b10f418ab